bitfinex/quotes_BTCUSD_20251025
["timestamp","ask_amount","ask_price","bid_price","bid_amount"]
[1761387754298,0.00037723,111560.0,111550.0,0.61062981]
[1761387756468,0.00037723,111560.0,111550.0,0.27110578]
[1761387756686,0.00037723,111560.0,111550.0,0.61062981]
[1761387758602,0.00037723,111560.0,111550.0,0.76790981]
[1761387759291,0.00037723,111560.0,111550.0,1.10790981]
[1761387759498,0.00037723,111560.0,111550.0,1.13481782]
[1761387760767,0.00037723,111560.0,111550.0,1.19921908]
[1761387761202,0.00037723,111560.0,111550.0,1.13481782]
[1761387765593,0.00037723,111560.0,111550.0,1.28451782]
[1761387768199,0.00041755,111560.0,111550.0,1.28451782]
[1761387784143,0.00041755,111560.0,111550.0,1.34891908]
[1761387786497,0.00041755,111560.0,111550.0,1.32201107]
[1761387790185,0.00041755,111560.0,111550.0,1.35819335]
[1761387794665,0.00041755,111560.0,111550.0,1.36819334]
[1761387795277,0.00041755,111560.0,111550.0,1.36719334]
[1761387796097,0.00041755,111560.0,111550.0,1.36619334]
[1761387796291,0.00041755,111560.0,111550.0,1.37019334]
[1761387796755,0.02690535,111590.0,111580.0,0.17924359]
[1761387796931,0.02690535,111590.0,111580.0,0.44422695]
[1761387797166,0.02690535,111590.0,111580.0,0.4263026]
[1761387797373,0.02791671,111590.0,111580.0,0.4263026]
[1761387798019,0.02991671,111590.0,111580.0,0.4263026]
[1761387801305,0.02991671,111590.0,111580.0,0.43508516]
[1761387802467,0.00301136,111590.0,111580.0,0.4263026]
[1761387803833,0.00301136,111590.0,111580.0,0.43519292]
[1761387806674,0.00301136,111590.0,111580.0,0.81684723]
[1761387824679,0.00101136,111590.0,111580.0,0.81684723]
[1761387825203,0.00101136,111590.0,111580.0,0.81784723]
[1761387831290,0.00101136,111590.0,111580.0,0.87520723]
[1761387833917,0.00101136,111590.0,111580.0,1.02490723]
[1761387835697,0.00101136,111590.0,111580.0,1.02390723]
[1761387836123,0.00101136,111590.0,111580.0,1.02790723]
[1761387836549,0.00101136,111590.0,111580.0,1.02690723]
[1761387837939,0.00101136,111590.0,111580.0,1.02790723]
[1761387838905,0.00101136,111590.0,111580.0,0.64625292]
[1761387839146,0.00101136,111590.0,111580.0,1.02786723]
[1761387839821,0.00101136,111590.0,111580.0,0.87816723]
[1761387840312,0.00101136,111590.0,111580.0,0.87516723]
[1761387840966,0.00101136,111590.0,111580.0,0.87716723]
[1761387841164,0.00101136,111590.0,111580.0,0.87616723]
[1761387841456,0.00101136,111590.0,111580.0,0.87716723]
[1761387847151,0.00101136,111590.0,111580.0,0.49551292]
[1761387847370,0.00101136,111590.0,111580.0,0.87716723]
[1761387859694,0.00101055,111590.0,111580.0,0.87716723]
[1761387862929,0.00101055,111590.0,111580.0,0.49551292]
[1761387863187,0.00101055,111590.0,111580.0,0.87716723]
[1761387868760,0.00101055,111590.0,111580.0,0.89920313]
[1761387869495,0.00101055,111590.0,111580.0,1.04890313]
[1761387869905,0.00101055,111590.0,111580.0,1.08508541]
[1761387870110,0.00101055,111590.0,111580.0,1.42508541]
[1761387875508,0.00101055,111590.0,111580.0,1.27538541]
[1761387877148,0.00101055,111590.0,111580.0,1.26649509]
[1761387878728,0.00101055,111590.0,111580.0,1.26549509]
[1761387879171,0.00101055,111590.0,111580.0,1.27049509]
[1761387879628,0.0002,111610.0,111600.0,1.23373658]
[1761387879837,0.0002,111610.0,111600.0,1.20597971]
[1761387880051,0.00034755,111610.0,111600.0,1.20597971]
[1761387880605,0.00034755,111610.0,111600.0,1.20697971]
[1761387881040,0.00034755,111610.0,111600.0,1.20797971]
[1761387881554,0.00034755,111610.0,111600.0,1.20697971]
[1761387882162,0.00034755,111610.0,111600.0,1.20797971]
[1761387882710,0.00034755,111610.0,111600.0,1.01463743]
[1761387882926,0.00034755,111610.0,111600.0,0.87377923]
[1761387883745,0.00034755,111610.0,111600.0,1.21295065]
[1761387884775,0.00034755,111610.0,111600.0,0.87377923]
[1761387885424,0.00102158,111610.0,111600.0,0.87377923]
[1761387885832,0.00102158,111610.0,111600.0,1.21295065]
[1761387886036,0.00102158,111610.0,111600.0,1.24913293]
[1761387887035,0.00102158,111610.0,111600.0,0.90996151]
[1761387887185,0.00102158,111610.0,111600.0,1.24913293]
[1761387890264,0.00102158,111610.0,111600.0,1.36265065]
[1761387890497,0.00102158,111610.0,111600.0,1.02347923]
[1761387891086,0.00102158,111610.0,111600.0,1.36265065]
[1761387896311,0.00102158,111610.0,111600.0,1.21295065]
[1761387897765,0.00106158,111610.0,111600.0,1.21295065]
[1761387901027,0.00106158,111610.0,111600.0,0.87377923]
[1761387901237,0.00106158,111610.0,111600.0,0.31929923]
[1761387901457,0.00106158,111610.0,111600.0,0.42815047]
[1761387901660,0.02795989,111610.0,111600.0,0.42815047]
[1761387902089,0.02795989,111610.0,111600.0,0.42715047]
[1761387902499,0.02795989,111610.0,111600.0,0.26903047]
[1761387902699,0.03195989,111610.0,111600.0,0.26903047]
[1761387905399,0.04987151,111610.0,111600.0,0.26903047]
[1761387908651,0.2111553,111610.0,111600.0,0.26903047]
[1761387908866,0.72535834,111610.0,111600.0,0.08981901]
[1761387909071,0.70744672,111610.0,111600.0,0.08981901]
[1761387909460,0.17921396,111600.0,111590.0,0.17922752]
[1761387909665,0.17921396,111600.0,111590.0,0.08981901]
[1761387909666,0.536297,111600.0,111590.0,0.08981901]
[1761387909875,0.51838538,111600.0,111590.0,0.26904653]
[1761387910285,0.54528941,111600.0,111590.0,0.26904653]
[1761387910487,0.20611799,111600.0,111590.0,0.26904653]
[1761387910868,0.20811799,111600.0,111590.0,0.08981901]
[1761387911073,0.20811799,111600.0,111590.0,0.26904653]
[1761387911279,0.20811799,111600.0,111590.0,0.27004653]
[1761387911715,0.20811799,111600.0,111590.0,0.26904653]
[1761387912154,0.20611799,111600.0,111590.0,0.08981901]
[1761387912586,0.55028941,111600.0,111590.0,0.08981901]
[1761387912802,0.21111799,111600.0,111590.0,0.08981901]
[1761387914965,0.21145504,111600.0,111590.0,0.08981901]
[1761387915237,0.55062646,111600.0,111590.0,0.08981901]
[1761387917313,0.21145504,111600.0,111590.0,0.08981901]
[1761387920520,0.55062646,111600.0,111590.0,0.08981901]
[1761387921356,0.21145504,111600.0,111590.0,0.08981901]
[1761387921602,0.21145504,111600.0,111590.0,0.26904653]
[1761387923637,0.21145504,111600.0,111590.0,0.08981901]
[1761387927273,0.21145504,111600.0,111590.0,0.26904653]
[1761387928756,0.59318047,111600.0,111590.0,0.26904653]
[1761387930783,0.59318047,111600.0,111590.0,0.08981901]
[1761387931641,0.59318047,111600.0,111590.0,0.26904653]
[1761387932685,0.59318047,111600.0,111590.0,0.08981901]
[1761387944782,0.65054047,111600.0,111590.0,0.08981901]
[1761387946315,0.26881504,111600.0,111590.0,0.08981901]
[1761387946775,0.65054047,111600.0,111590.0,0.08981901]
[1761387966413,0.62363644,111600.0,111590.0,0.08981901]
[1761387966848,0.62363644,111600.0,111570.0,0.26350538]
[1761387966849,0.17924116,111590.0,111570.0,0.26350538]
[1761387967058,0.57887821,111590.0,111580.0,0.08981901]
[1761387967260,0.71812659,111590.0,111580.0,0.08981901]
[1761387969105,0.72212659,111590.0,111580.0,0.08981901]
[1761387972327,0.17924359,111580.0,111560.0,0.07529769]
[1761387972550,0.7360567,111570.0,111560.0,0.31748559]
[1761387972769,0.71814508,111570.0,111560.0,0.08981901]
[1761387973438,0.33641965,111570.0,111560.0,0.08981901]
[1761387973649,0.71814508,111570.0,111560.0,0.08981901]
[1761387974079,0.71814508,111570.0,111560.0,0.09081901]
[1761387974486,0.71814508,111570.0,111560.0,0.08981901]
[1761387975483,0.72014508,111570.0,111560.0,0.08981901]
[1761387976041,0.72014508,111570.0,111560.0,0.26909473]
[1761387977229,0.72014508,111570.0,111560.0,0.08981901]
[1761387983194,0.33841965,111570.0,111560.0,0.08981901]
[1761387983398,0.72014508,111570.0,111560.0,0.26909473]
[1761387984653,0.72014508,111570.0,111560.0,0.08981901]
[1761387984844,0.72014508,111570.0,111560.0,0.26909473]
[1761387987874,0.54088543,111570.0,111560.0,0.26909473]
[1761387988876,0.15916,111570.0,111560.0,0.26909473]
[1761387989081,0.17707162,111570.0,111560.0,0.26909473]
[1761387998490,0.15916,111570.0,111560.0,0.26909473]
[1761388002446,0.002,111570.0,111560.0,0.26909473]
[1761388022972,0.002,111570.0,111560.0,0.60847102]
[1761388023383,0.002,111570.0,111560.0,0.63537867]
[1761388026225,0.002,111570.0,111560.0,0.97475496]
[1761388026427,0.05769705,111600.0,111590.0,0.17922752]
[1761388026594,0.0004846,111600.0,111590.0,0.26904653]
[1761388029121,0.0044846,111600.0,111590.0,0.26904653]
[1761388033396,0.02239622,111600.0,111590.0,0.26904653]
[1761388040013,0.0044846,111600.0,111590.0,0.26904653]
[1761388040873,0.0044846,111600.0,111590.0,0.08981901]
[1761388041082,0.70177251,111600.0,111590.0,0.17922752]
[1761388041287,0.68386089,111600.0,111590.0,0.17922752]
[1761388042506,0.86307235,111600.0,111590.0,0.17922752]
[1761388045470,0.86307235,111600.0,111580.0,0.17922973]
[1761388045673,0.17503162,111590.0,111580.0,0.26904874]
[1761388048333,0.17703162,111590.0,111580.0,0.26904874]
[1761388048672,0.55882151,111590.0,111580.0,0.26904874]
[1761388048885,0.54090989,111590.0,111580.0,0.26904874]
[1761388057042,0.15912,111590.0,111580.0,0.26904874]
[1761388057249,0.55882151,111590.0,111580.0,0.26904874]
[1761388057461,0.54090989,111590.0,111580.0,0.26904874]
[1761388058831,0.15912,111590.0,111580.0,0.26904874]
[1761388062210,0.002,111590.0,111580.0,0.65083863]
[1761388062418,0.002,111590.0,111580.0,0.80795863]
[1761388062811,0.002,111590.0,111580.0,0.83486203]
[1761388064117,0.0004846,111600.0,111590.0,0.17922752]
[1761388064332,0.0004846,111600.0,111590.0,0.65083642]
[1761388064989,0.0004846,111600.0,111590.0,0.67773982]
[1761388076065,0.0004846,111600.0,111590.0,0.67779159]
[1761388088198,0.0004846,111600.0,111590.0,0.2960017]
[1761388089374,0.0004846,111600.0,111590.0,0.67779159]
[1761388095346,0.0004846,111600.0,111590.0,0.65088819]
[1761388099784,0.0004846,111600.0,111590.0,0.2690983]
[1761388099984,0.0004846,111600.0,111590.0,0.65088819]
[1761388101484,0.0004846,111600.0,111590.0,0.65989554]
[1761388102490,0.0004846,111600.0,111590.0,0.68679776]
[1761388104966,0.0004846,111600.0,111590.0,0.30500787]
[1761388105174,0.0004846,111600.0,111590.0,0.68679776]
[1761388109607,0.0004846,111600.0,111590.0,0.67779041]
[1761388110969,0.0004846,111600.0,111590.0,0.29600052]
[1761388118079,0.0004846,111600.0,111590.0,0.45308052]
[1761388123594,0.0004846,111600.0,111590.0,0.2690983]
[1761388123822,0.0004846,111600.0,111590.0,0.4261783]
[1761388124094,0.01839622,111600.0,111590.0,0.2690983]
[1761388125479,0.19760768,111600.0,111590.0,0.2690983]
[1761388126083,0.35468768,111600.0,111590.0,0.2690983]
[1761388126284,0.33677606,111600.0,111590.0,0.2690983]
[1761388126479,0.76417549,111600.0,111590.0,5.177e-05]
[1761388126678,0.82149549,111600.0,111590.0,5.177e-05]
[1761388126915,0.84840309,111600.0,111590.0,5.177e-05]
[1761388127198,1.18840309,111600.0,111590.0,5.177e-05]
[1761388127771,1.22458537,111600.0,111590.0,5.177e-05]
[1761388127971,1.67686209,111600.0,111590.0,5.177e-05]
[1761388128945,1.67286209,111600.0,111590.0,5.177e-05]
[1761388129370,1.65357503,111600.0,111590.0,5.177e-05]
[1761388129574,1.67684036,111600.0,111590.0,5.177e-05]
[1761388130360,1.65757503,111600.0,111590.0,5.177e-05]
[1761388151348,1.6768286,111600.0,111590.0,5.177e-05]
[1761388151959,0.90866829,111600.0,111590.0,5.177e-05]
[1761388152169,1.22858537,111600.0,111590.0,5.177e-05]
[1761388152549,1.24784699,111600.0,111590.0,5.177e-05]
[1761388152955,1.22858537,111600.0,111590.0,5.177e-05]
[1761388153249,1.24784791,111600.0,111590.0,5.177e-05]
[1761388158544,0.6002786,111600.0,111590.0,5.177e-05]
[1761388158786,0.7573986,111600.0,111590.0,5.177e-05]
[1761388159008,1.09656925,111600.0,111590.0,5.177e-05]
[1761388160727,1.09656925,111600.0,111590.0,0.17927929]
[1761388162590,0.4173986,111600.0,111590.0,0.17927929]
[1761388162795,0.73730671,111600.0,111590.0,0.17927929]
[1761388164654,0.82712572,111600.0,111590.0,5.177e-05]
[1761388164868,0.84641365,111600.0,111590.0,5.177e-05]
[1761388166611,0.88259593,111600.0,111590.0,5.177e-05]
[1761388167444,0.90950655,111600.0,111590.0,5.177e-05]
[1761388172858,1.3340267,111600.0,111590.0,5.177e-05]
[1761388176055,1.30711608,111600.0,111590.0,5.177e-05]
[1761388185731,1.64711608,111600.0,111590.0,5.177e-05]
[1761388187646,1.73693509,111600.0,111590.0,5.177e-05]
[1761388187944,1.76103026,111600.0,111590.0,5.177e-05]
[1761388188141,1.78794356,111600.0,111590.0,5.177e-05]
[1761388189219,1.78394356,111600.0,111590.0,5.177e-05]
[1761388189440,1.78794356,111600.0,111590.0,5.177e-05]
[1761388192035,1.82006184,111600.0,111590.0,5.177e-05]
[1761388193273,1.78794356,111600.0,111590.0,5.177e-05]
[1761388194435,1.82006184,111600.0,111590.0,5.177e-05]
[1761388194641,2.20190724,111600.0,111590.0,5.177e-05]
[1761388194841,2.21190723,111600.0,111590.0,5.177e-05]
[1761388195095,1.83006183,111600.0,111590.0,5.177e-05]
[1761388195677,1.82606183,111600.0,111590.0,5.177e-05]
[1761388195859,1.83006183,111600.0,111590.0,5.177e-05]
[1761388199683,2.21190723,111600.0,111590.0,5.177e-05]
[1761388200547,2.18781206,111600.0,111590.0,5.177e-05]
[1761388201695,2.28217206,111600.0,111590.0,5.177e-05]
[1761388204720,2.27817206,111600.0,111590.0,5.177e-05]
[1761388205062,2.28117206,111600.0,111590.0,5.177e-05]
[1761388206664,2.3292206,111600.0,111590.0,5.177e-05]
[1761388207704,2.29710232,111600.0,111590.0,5.177e-05]
[1761388211308,0.17931228,111540.0,111520.0,0.17923343]
[1761388211513,0.55691702,111530.0,111520.0,0.26915737]
[1761388211728,0.71832934,111530.0,111520.0,0.26915737]
[1761388212559,0.71832934,111530.0,111520.0,0.27030479]
[1761388213137,0.71832934,111530.0,111520.0,0.27730479]
[1761388213514,0.71832934,111530.0,111520.0,0.27830479]
[1761388214263,0.71832934,111530.0,111520.0,0.27030479]
[1761388214659,0.71932934,111530.0,111520.0,0.27830479]
[1761388214835,0.71832934,111530.0,111520.0,0.27030479]
[1761388215046,0.71832934,111530.0,111520.0,0.26930479]
[1761388215242,0.71832934,111530.0,111520.0,0.27430479]
[1761388216427,0.5390054,111530.0,111520.0,0.27430479]
[1761388217979,0.80814835,111530.0,111520.0,0.27430479]
[1761388218194,0.80814835,111530.0,111520.0,0.18448744]
[1761388219299,0.80814835,111530.0,111520.0,0.00514742]
[1761388222367,0.80814835,111530.0,111520.0,0.18448744]
[1761388224079,0.80814835,111530.0,111520.0,0.00514742]
[1761388224282,0.80814835,111530.0,111520.0,0.18448744]
[1761388225857,0.80814835,111530.0,111520.0,0.00514742]
[1761388226240,0.80814835,111530.0,111520.0,0.18448744]
[1761388229117,0.57998096,111540.0,111520.0,0.18448744]
[1761388229322,0.5390454,111530.0,111520.0,0.18448744]
[1761388230157,0.5390454,111530.0,111520.0,0.17948744]
[1761388230358,0.5390454,111530.0,111520.0,0.18448744]
[1761388230661,0.5390454,111530.0,111520.0,0.17948744]
[1761388230889,0.71836934,111530.0,111520.0,0.17948744]
[1761388231098,0.71836934,111530.0,111520.0,0.18448744]
[1761388231630,0.5390454,111530.0,111520.0,0.18448744]
[1761388234386,0.74653619,111530.0,111520.0,0.18448744]
[1761388234802,0.70447188,111530.0,111520.0,0.18448744]
[1761388237459,0.70447188,111530.0,111520.0,0.00514742]
[1761388238500,1.09990863,111530.0,111520.0,0.00514742]
[1761388239370,1.12683596,111530.0,111520.0,0.00514742]
[1761388240106,1.12683596,111530.0,111520.0,0.00014742]
[1761388240696,1.12783596,111530.0,111520.0,0.00014742]
[1761388248625,0.78805487,111530.0,111520.0,0.00014742]
[1761388248828,0.75187259,111530.0,111520.0,0.00014742]
[1761388249010,1.07239921,111530.0,111520.0,0.00014742]
[1761388250660,1.09164309,111530.0,111520.0,0.00014742]
[1761388257168,1.07239921,111530.0,111520.0,0.00014742]
[1761388257396,1.12782668,111530.0,111520.0,0.00014742]
[1761388258204,1.12782758,111530.0,111520.0,0.00014742]
[1761388258372,1.10858149,111530.0,111520.0,0.00014742]
[1761388260304,1.12783135,111530.0,111520.0,0.00014742]
[1761388262848,0.93444907,111530.0,111520.0,0.00014742]
[1761388263102,1.09164907,111530.0,111520.0,0.00014742]
[1761388266318,1.06472174,111530.0,111520.0,0.00014742]
[1761388278567,0.90752174,111530.0,111520.0,0.00014742]
[1761388278807,1.12216174,111530.0,111520.0,0.00014742]
[1761388282079,1.06476174,111530.0,111520.0,0.00014742]
[1761388282209,1.12216174,111530.0,111520.0,0.00014742]
[1761388282408,1.12221119,111530.0,111520.0,0.00014742]
[1761388285272,1.06481119,111530.0,111520.0,0.00014742]
[1761388285518,1.12221119,111530.0,111520.0,0.00014742]
[1761388285642,1.12225119,111530.0,111520.0,0.00014742]
[1761388287118,0.90761119,111530.0,111520.0,0.00014742]
[1761388287321,1.12225119,111530.0,111520.0,0.00014742]
[1761388287544,0.5678301,111530.0,111520.0,0.00014742]
[1761388287787,0.23497931,111530.0,111520.0,0.17948744]
[1761388288219,0.21568,111530.0,111520.0,0.17948744]
[1761388288636,0.21468,111530.0,111520.0,0.17948744]
[1761388288878,0.05744,111530.0,111520.0,0.26930645]
[1761388289104,0.15728,111530.0,111520.0,0.26930645]
[1761388289759,0.15728,111530.0,111520.0,0.27230645]
[1761388299449,0.53944442,111530.0,111520.0,0.27230645]
[1761388300111,0.15728,111530.0,111520.0,0.27230645]
[1761388300818,0.53944442,111530.0,111520.0,0.27230645]
[1761388301025,0.79064378,111530.0,111520.0,0.27230645]
[1761388302195,0.15728,111530.0,111520.0,0.27230645]
[1761388302395,0.53944442,111530.0,111520.0,0.27230645]
[1761388302594,0.15728,111530.0,111520.0,0.27230645]
[1761388302808,0.33660394,111530.0,111520.0,0.27230645]
[1761388303235,0.71876836,111530.0,111520.0,0.27230645]
[1761388304287,0.33660394,111530.0,111520.0,0.27230645]
[1761388304724,0.71876836,111530.0,111520.0,0.27230645]
[1761388305602,0.53944442,111530.0,111520.0,0.27230645]
[1761388305731,0.79803404,111530.0,111520.0,0.27230645]
[1761388306347,0.6187101,111530.0,111520.0,0.27230645]
[1761388306558,0.79803404,111530.0,111520.0,0.27230645]
[1761388308387,0.71876836,111530.0,111520.0,0.27230645]
[1761388308848,0.71876836,111530.0,111520.0,0.09296643]
[1761388310070,0.71876836,111530.0,111520.0,0.27230645]
[1761388314248,0.33660394,111530.0,111520.0,0.27230645]
[1761388314475,0.71876836,111530.0,111520.0,0.27230645]
[1761388315301,0.80857617,111530.0,111520.0,0.27230645]
[1761388315752,0.24708781,111530.0,111520.0,0.27230645]
[1761388315963,0.53944442,111530.0,111520.0,0.27230645]
[1761388316380,0.15728,111530.0,111520.0,0.27230645]
[1761388316548,0.53944442,111530.0,111520.0,0.27230645]
[1761388318700,0.71876836,111530.0,111520.0,0.27230645]
[1761388321461,0.71876836,111530.0,111520.0,0.09296643]
[1761388321661,0.80858737,111530.0,111520.0,0.09296643]
[1761388322526,0.80858737,111530.0,111520.0,0.27230645]
[1761388323560,0.86598737,111530.0,111520.0,0.09296643]
[1761388326677,0.89290967,111530.0,111520.0,0.09296643]
[1761388328242,1.23290967,111530.0,111520.0,0.00314742]
[1761388338325,1.25219892,111530.0,111520.0,0.00314742]
[1761388340783,1.25219892,111530.0,111520.0,0.00014742]
[1761388341093,1.25219892,111530.0,111520.0,0.00214742]
[1761388341503,1.25219892,111530.0,111520.0,0.00014742]
[1761388341669,1.25219892,111530.0,111520.0,0.00214742]
[1761388348339,0.8700345,111530.0,111520.0,0.00214742]
[1761388348541,1.25219892,111530.0,111520.0,0.00214742]
[1761388349554,0.8700345,111530.0,111520.0,0.00214742]
[1761388349759,1.25219892,111530.0,111520.0,0.00214742]
[1761388350743,0.8700345,111530.0,111520.0,0.00214742]
[1761388350953,1.25219892,111530.0,111520.0,0.00214742]
[1761388351877,0.8700345,111530.0,111520.0,0.00214742]
[1761388352061,1.25219892,111530.0,111520.0,0.00214742]
[1761388356707,0.8700345,111530.0,111520.0,0.00214742]
[1761388357546,1.20980841,111530.0,111520.0,0.00214742]
[1761388359898,1.05256841,111530.0,111520.0,0.00214742]
[1761388360093,1.20980841,111530.0,111520.0,0.00214742]
[1761388362694,0.85074525,111530.0,111520.0,0.00214742]
[1761388365442,0.85074525,111530.0,111520.0,0.18148744]
[1761388366155,1.19051916,111530.0,111520.0,0.00214742]
[1761388366354,1.20981047,111530.0,111520.0,0.00214742]
[1761388368685,1.19051916,111530.0,111520.0,0.18148744]
[1761388368894,1.20981152,111530.0,111520.0,0.00214742]
[1761388369105,1.19051916,111530.0,111520.0,0.00214742]
[1761388370523,1.19051916,111530.0,111520.0,0.18148744]
[1761388371447,0.85074525,111530.0,111520.0,0.18148744]
[1761388371643,0.67142131,111530.0,111520.0,0.18148744]
[1761388371865,0.85074525,111530.0,111520.0,0.18148744]
[1761388379589,0.5241623,111530.0,111520.0,0.18148744]
[1761388379809,0.5815623,111530.0,111520.0,0.18148744]
[1761388381697,0.3669623,111530.0,111520.0,0.18148744]
[1761388381931,0.2415623,111530.0,111520.0,0.27130645]
[1761388382683,0.0843623,111530.0,111520.0,0.27130645]
[1761388382889,4e-05,111530.0,111520.0,0.61108036]
[1761388383109,0.15724,111530.0,111520.0,0.61108036]
[1761388383511,0.15724,111530.0,111520.0,0.27130645]
[1761388384111,0.15724,111530.0,111520.0,0.26930645]
[1761388384459,0.15724,111530.0,111520.0,0.27230645]
[1761388399269,0.15724,111530.0,111520.0,0.61208036]
[1761388399828,4e-05,111530.0,111520.0,0.76928036]
[1761388400850,4e-05,111530.0,111520.0,0.76628036]
[1761388401020,4e-05,111530.0,111520.0,0.77328036]
[1761388403190,4e-05,111530.0,111520.0,1.51041427]
[1761388403387,4e-05,111530.0,111520.0,1.51509442]
[1761388406649,4e-05,111530.0,111520.0,1.5512767]
[1761388406851,4e-05,111530.0,111520.0,1.56127669]
[1761388407461,4e-05,111530.0,111520.0,1.55427669]
[1761388407813,4e-05,111530.0,111520.0,1.55627669]
[1761388408190,4e-05,111530.0,111520.0,1.62071223]
[1761388408646,4e-05,111530.0,111520.0,1.81366389]
[1761388408864,4e-05,111530.0,111520.0,1.75622835]
[1761388409071,4e-05,111530.0,111520.0,1.74788471]
[1761388409238,4e-05,111530.0,111520.0,1.74088471]
[1761388409479,4e-05,111530.0,111520.0,1.74988471]
[1761388410345,4e-05,111530.0,111520.0,1.80513688]
[1761388410801,4e-05,111530.0,111520.0,1.74988471]
[1761388410981,4e-05,111530.0,111520.0,2.20342901]
[1761388411181,4e-05,111530.0,111520.0,1.8636551]
[1761388411830,4e-05,111530.0,111520.0,1.83040343]
[1761388412469,4e-05,111530.0,111520.0,1.74988471]
[1761388413110,4e-05,111530.0,111520.0,1.53532471]
[1761388413333,4e-05,111530.0,111520.0,1.8142479]
[1761388418300,4e-05,111530.0,111520.0,1.75004471]
[1761388418796,4e-05,111530.0,111520.0,1.83413367]
[1761388419438,4e-05,111530.0,111520.0,1.77673367]
[1761388419639,4e-05,111530.0,111520.0,1.83409367]
[1761388425293,4e-05,111530.0,111520.0,1.89829686]
[1761388426202,4e-05,111530.0,111520.0,1.4322753]
[1761388426412,4e-05,111530.0,111520.0,0.8775953]
[1761388426623,4e-05,111530.0,111520.0,1.40536727]
[1761388427051,4e-05,111530.0,111520.0,1.36918499]
[1761388427465,4e-05,111530.0,111520.0,1.40536727]
[1761388427803,4e-05,111530.0,111520.0,1.39636727]
[1761388428012,4e-05,111530.0,111520.0,1.40236727]
[1761388428210,4e-05,111530.0,111520.0,1.40436727]
[1761388428546,4e-05,111530.0,111520.0,1.78618566]
[1761388431347,4e-05,111530.0,111520.0,1.85038885]
[1761388433804,4e-05,111530.0,111520.0,1.87730074]
[1761388436097,4e-05,111530.0,111520.0,1.88730073]
[1761388436841,4e-05,111530.0,111520.0,1.89730072]
[1761388437398,4e-05,111530.0,111520.0,1.83309753]
[1761388440392,4e-05,111530.0,111520.0,1.82309754]
[1761388440750,4e-05,111530.0,111520.0,1.8663492]
[1761388440956,0.52818997,111590.0,111520.0,1.94686792]
[1761388441162,0.52818997,111590.0,111580.0,0.17924359]
[1761388441548,0.00033705,111600.0,111590.0,0.17922752]
[1761388441725,0.00033705,111600.0,111590.0,0.26904653]
[1761388441938,0.00033705,111600.0,111590.0,0.65086492]
[1761388442141,0.0272417,111600.0,111590.0,0.65086492]
[1761388442342,0.02738925,111600.0,111590.0,0.65086492]
[1761388442746,0.03138925,111600.0,111590.0,0.65086492]
[1761388442942,0.0044846,111600.0,111590.0,0.65086492]
[1761388444070,0.0004846,111600.0,111590.0,0.65086492]
[1761388444467,0.0034846,111600.0,111590.0,0.65086492]
[1761388445793,0.0034846,111600.0,111590.0,0.26904653]
[1761388445999,0.0034846,111600.0,111590.0,0.65086492]
[1761388446622,0.03038778,111600.0,111590.0,0.65086492]
[1761388447236,0.02738778,111600.0,111590.0,0.65086492]
[1761388447644,0.02938778,111600.0,111590.0,0.65086492]
[1761388447852,0.02738778,111600.0,111590.0,0.65086492]
[1761388448046,0.03138778,111600.0,111590.0,0.65086492]
[1761388448892,0.03138778,111600.0,111590.0,0.26904653]
[1761388449438,0.03138778,111600.0,111590.0,0.65086492]
[1761388450983,0.03138778,111600.0,111590.0,0.26904653]
[1761388460651,0.18874778,111600.0,111590.0,0.26904653]
[1761388477064,0.18874778,111600.0,111590.0,0.28584669]
[1761388478614,0.57056617,111600.0,111590.0,0.28584669]
[1761388478791,0.74977763,111600.0,111590.0,0.28584669]
[1761388480718,0.36795924,111600.0,111590.0,0.28584669]
[1761388481119,0.36795924,111600.0,111590.0,0.01680016]
[1761388481325,0.79593365,111600.0,111590.0,0.01680016]
[1761388481485,0.17923721,111590.0,111570.0,0.18820877]
[1761388481672,0.15732,111580.0,111570.0,0.29483209]
[1761388482107,0.18422864,111580.0,111570.0,0.29483209]
[1761388482674,0.18422864,111580.0,111570.0,0.29583209]
[1761388483148,0.18135108,111580.0,111570.0,0.29583209]
[1761388483323,0.18235108,111580.0,111570.0,0.29583209]
[1761388483537,0.36159467,111580.0,111570.0,0.10762332]
[1761388483720,0.36159467,111580.0,111570.0,0.28688297]
[1761388483923,0.36159467,111580.0,111570.0,0.28588297]
[1761388484333,0.36159467,111580.0,111570.0,0.28688297]
[1761388488139,0.36159467,111580.0,111570.0,0.10762332]
[1761388493503,0.36159467,111580.0,111570.0,0.28688297]
[1761388494508,0.36159467,111580.0,111570.0,0.10762332]
[1761388494907,0.36159467,111580.0,111570.0,0.28688297]
[1761388497523,0.18235108,111580.0,111570.0,0.6261874]
[1761388498327,0.18235108,111580.0,111570.0,0.28688297]
[1761388500676,0.18518864,111580.0,111570.0,0.28688297]
[1761388502324,0.36443223,111580.0,111570.0,0.28688297]
[1761388502656,0.36443223,111580.0,111570.0,0.10762332]
[1761388504021,0.36443223,111580.0,111570.0,0.28688297]
[1761388506390,0.33752359,111580.0,111570.0,0.10762332]
[1761388508544,0.33752359,111580.0,111570.0,0.28688297]
[1761388511547,0.33752359,111580.0,111570.0,0.28687439]
[1761388511933,0.33752359,111580.0,111570.0,0.28792524]
[1761388522046,0.33752359,111580.0,111570.0,0.10866559]
[1761388522249,0.33752359,111580.0,111570.0,0.10867246]
[1761388522713,0.36443351,111580.0,111570.0,0.10867246]
[1761388529754,0.36443351,111580.0,111570.0,0.28793211]
[1761388530269,0.36443351,111580.0,111570.0,0.10867246]
[1761388530485,0.36443351,111580.0,111570.0,0.28793211]
[1761388533064,0.36443351,111580.0,111570.0,0.28793694]
[1761388537373,0.33752359,111580.0,111570.0,0.28793694]
[1761388541662,0.33752359,111580.0,111570.0,0.01885828]
[1761388541663,0.67682802,111580.0,111570.0,0.01885828]
[1761388541870,1.0962857,111580.0,111570.0,0.01885828]
[1761388542115,1.1231997,111580.0,111570.0,0.01885828]
[1761388542321,0.56651305,111580.0,111570.0,0.01885828]
[1761388542520,0.72375305,111580.0,111570.0,0.01885828]
[1761388542673,1.10560149,111580.0,111570.0,0.00105085]
[1761388543195,1.10460149,111580.0,111570.0,0.00105085]
[1761388543424,1.11060149,111580.0,111570.0,0.00105085]
[1761388544348,1.09124603,111580.0,111570.0,0.00105085]
[1761388549599,1.14860603,111580.0,111570.0,0.00105085]
[1761388550616,1.09124603,111580.0,111570.0,0.00105085]
[1761388551050,1.14860603,111580.0,111570.0,0.00105085]
[1761388551263,0.032914,111580.0,111570.0,0.28805547]
[1761388551470,0.247514,111580.0,111570.0,0.27012951]
[1761388551717,0.42675759,111580.0,111570.0,0.27012951]
[1761388552384,0.80860603,111580.0,111570.0,0.27012951]
[1761388552821,0.80260603,111580.0,111570.0,0.27012951]
[1761388553030,0.80660603,111580.0,111570.0,0.27012951]
[1761388556439,0.42475759,111580.0,111570.0,0.27012951]
[1761388556561,0.245514,111580.0,111570.0,0.27012951]
[1761388556758,0.80660603,111580.0,111570.0,0.27012951]
[1761388557216,0.62736244,111580.0,111570.0,0.27012951]
[1761388557639,0.245514,111580.0,111570.0,0.27012951]
[1761388558463,0.030914,111580.0,111570.0,0.27012951]
[1761388558665,0.16124,111580.0,111570.0,0.27012951]
[1761388559810,0.004,111580.0,111570.0,1.19106639]